bitfinex-derivatives/quotes_ETHF0:USTF0_20260226
["timestamp","ask_amount","ask_price","bid_price","bid_amount"]
[1772106495028,0.24338,2054.4,2053.2,1.38166754]
[1772106495233,0.24339,2054.2,2053.2,1.38166754]
[1772106495532,12.278,2054.1,2053.2,1.38593924]
[1772106495729,53.078,2054.1,2053.2,1.38593924]
[1772106497436,12.278,2054.1,2053.2,1.38593924]
[1772106497738,12.278,2054.1,2053.7,1.37800579]
[1772106499938,0.24334,2054.6,2053.7,1.37800579]
[1772106500441,40.8,2054.5,2053.7,1.37800579]
[1772106501038,0.00541866,2054.5,2053.7,1.37800579]
[1772106512443,12.326,2054.8,2053.7,1.37800579]
[1772106512644,12.326,2054.8,2054.5,6.6052764]
[1772106512843,12.18106676,2054.8,2054.5,6.53418211]
[1772106513549,12.18613619,2054.8,2054.5,6.53418211]
[1772106514252,10.91227058,2054.8,2054.6,1.4173668]
[1772106514550,10.01438467,2054.8,2054.6,1.4173668]
[1772106515052,10.01438467,2054.8,2054.5,7.94990222]
[1772106515752,10.01438467,2054.8,2054.5,6.53418211]
[1772106519556,10.01438467,2054.8,2054.2,1.41044282]
[1772106531166,0.00506943,2054.8,2054.5,1.42039388]
[1772106531458,1.19403743,2055.0,2054.2,1.42039388]
[1772106531866,1.19403743,2054.5,2054.2,1.42039388]
[1772106532062,1.19403743,2054.5,2053.8,1.42055174]
[1772106532259,1.19838656,2054.5,2053.8,1.42055174]
[1772106532563,12.588,2054.4,2053.8,1.42055174]
[1772106532765,0.00434913,2054.5,2053.8,1.42055174]
[1772106532965,12.587,2054.4,2053.8,1.42055174]
[1772106533659,12.587,2054.4,2053.4,1.42257628]
[1772106533660,7.11850221,2054.3,2053.4,1.42257628]
[1772106533866,12.586,2054.2,2053.4,1.42257628]
[1772106534366,0.00434913,2054.5,2053.6,1.42257628]
[1772106534567,12.637,2054.4,2053.8,1.42257628]
[1772106535165,1.19403743,2054.2,2053.4,1.42129444]
[1772106537768,13.83103743,2054.4,2053.4,1.42129444]
[1772106537973,12.642,2054.3,2053.4,1.42129444]
[1772106538266,12.642,2054.3,2053.6,1.42262485]
[1772106538763,1.19403743,2054.2,2053.3,1.42693332]
[1772106538968,12.643,2054.2,2053.7,1.42693332]
[1772106540170,0.24337,2054.4,2053.7,1.42693332]
[1772106540371,12.645,2054.3,2053.7,1.42693332]
[1772106541471,1e-08,2054.5,2054.1,1.43150602]
[1772106541970,12.64,2054.9,2054.3,1.43163103]
[1772106542867,12.64586009,2054.9,2054.3,1.43163103]
[1772106543069,0.00586009,2054.9,2054.3,1.43163103]
[1772106543264,12.66686009,2054.9,2054.4,1.43064243]
[1772106544268,40.8,2055.2,2054.6,7.06295245]
[1772106544474,12.669,2055.1,2054.6,7.06295245]
[1772106544873,12.669,2055.1,2054.6,1.43077034]
[1772106545375,12.6738475,2055.1,2054.6,1.43077034]
[1772106546176,0.0048475,2055.1,2054.6,1.43077034]
[1772106553285,0.24325,2055.5,2054.6,1.43077034]
[1772106553485,0.24312,2056.6,2055.3,1.41622257]
[1772106553788,1.790715,2056.2,2055.1,1.41639111]
[1772106553993,19.2456213,2056.1,2055.1,1.41639111]
[1772106554194,12.904,2056.1,2055.1,1.41639111]
[1772106554494,12.90766698,2056.1,2055.1,1.41992954]
[1772106556293,0.2432,2055.8,2054.7,1.42270581]
[1772106557297,0.2432,2055.8,2054.7,1.42814505]
[1772106559299,40.8,2055.7,2054.7,1.42814505]
[1772106559498,12.928,2055.6,2054.7,1.42814505]
[1772106559700,14.718715,2055.6,2054.7,0.00543924]
[1772106560395,14.718715,2055.6,2054.4,1.42249044]
[1772106560396,6.22702,2055.5,2054.4,1.42249044]
[1772106560604,1.790715,2055.3,2054.4,1.42249044]
[1772106561501,1.790715,2055.3,2054.4,1.42737428]
[1772106563200,1.19407607,2055.0,2054.4,1.42737428]
[1772106563401,12.942,2054.9,2054.4,1.42737428]
[1772106564099,12.938,2054.8,2054.4,1.42737428]
[1772106564300,12.938,2054.9,2054.5,1.42269073]
[1772106567099,12.89594114,2054.9,2054.5,1.42269073]
[1772106570200,0.24324,2055.5,2054.4,0.00488384]
[1772106570201,6.04520317,2056.1,2054.6,1.2356627]
[1772106570406,1.19407607,2056.0,2054.9,1.2356627]
[1772106570601,12.93566698,2056.1,2055.1,1.24009091]
[1772106570801,40.8,2056.0,2055.1,1.24009091]
[1772106571000,12.93566698,2056.1,2055.3,1.24009091]
[1772106571899,0.00366698,2056.1,2055.3,1.24009091]
[1772106574500,0.00366698,2056.1,2055.7,5.63218211]
[1772106574703,0.00366698,2056.1,2055.4,1.23946437]
[1772106575203,12.934,2056.0,2055.4,1.23946437]
[1772106586910,0.00366698,2056.1,2055.4,1.23946437]
[1772106591214,40.8,2056.7,2055.4,2.43159007]
[1772106591410,40.8,2056.7,2055.5,1.25698898]
[1772106592215,40.80620105,2056.7,2055.5,1.25698898]
[1772106596516,40.80620105,2056.7,2055.7,2.45278797]
[1772106596715,40.80620105,2056.7,2055.8,1.2607183]
[1772106597414,6.04153619,2057.3,2056.1,1.2607183]
[1772106597415,14.4481657,2057.3,2056.1,1.2607183]
[1772106597620,0.24305,2057.1,2056.1,1.2607183]
[1772106598418,0.24911229,2057.1,2056.1,1.26694962]
[1772106599420,1.44123799,2057.1,2056.1,1.26694962]
[1772106599618,0.2431,2056.7,2056.0,1.20191337]
[1772106599812,13.008,2056.6,2056.0,1.20191337]
[1772106600620,13.008,2056.6,2056.0,1.20679744]
[1772106601022,0.24312,2056.5,2055.8,1.1621719]
[1772106601224,1.4352457,2056.5,2055.7,1.1621719]
[1772106601623,0.24312,2056.5,2055.7,1.1621719]
[1772106602121,0.24312,2056.5,2055.7,1.16605927]
[1772106603330,41.04312,2056.5,2055.7,1.16605927]
[1772106604826,41.04312,2056.5,2055.7,0.00388737]
[1772106605226,1.1921257,2056.4,2055.7,0.00388737]
[1772106605525,1.1921257,2056.1,2055.0,1.12927126]
[1772106605729,13.03,2056.0,2055.0,1.12927126]
[1772106606427,13.03,2056.0,2055.0,1.13505001]
[1772106609131,0.24319,2055.9,2055.0,1.13505001]
[1772106615936,13.03,2056.0,2055.0,1.13505001]
[1772106617638,13.27319,2056.0,2055.0,1.13505001]
[1772106619830,17.2075674,2056.4,2055.0,1.13505001]
[1772106620033,6.23145087,2056.3,2055.0,1.13505001]
[1772106620338,13.17513,2056.4,2055.0,1.13505001]
[1772106620533,0.24315,2056.2,2055.0,1.13505001]
[1772106623538,0.2432,2055.9,2055.0,1.13505001]
[1772106623739,0.24321,2055.7,2055.0,1.13505001]
[1772106623938,0.24321,2055.7,2054.9,1.15453909]
[1772106624135,0.24321,2055.7,2054.1,1.15453909]
[1772106624943,0.24321,2055.7,2054.1,1.16000408]
[1772106634247,0.24326,2055.4,2054.1,1.16000408]
[1772106634447,0.24717198,2055.4,2054.1,1.16000408]
[1772106636345,0.00391198,2055.4,2054.3,1.18584222]
[1772106636748,4.2755874,2056.3,2054.7,1.20213691]
[1772106636951,6.69545043,2056.2,2054.7,1.20213691]
[1772106637153,4.2755874,2056.3,2054.7,1.20213691]
[1772106637154,6.27803512,2056.1,2054.7,1.20213691]
[1772106637454,4.2755874,2056.3,2054.8,1.20213691]
[1772106637649,6.69483424,2056.2,2054.8,1.20213691]
[1772106637850,6.27745736,2056.1,2054.8,1.20213691]
[1772106643455,0.00538393,2056.2,2055.0,1.2033642]
[1772106645561,0.24317,2056.1,2055.0,1.2033642]
[1772106646462,0.00538393,2056.2,2055.0,1.2033642]
[1772106650465,12.845,2056.4,2055.0,1.2033642]
[1772106650668,0.24314,2056.3,2055.0,1.2033642]
[1772106651564,0.24929305,2056.3,2055.0,1.2033642]
[1772106653367,0.24319,2056.0,2055.0,1.2033642]
[1772106653669,0.2432,2055.8,2055.0,1.2033642]
[1772106660875,0.24316,2056.2,2055.0,1.2033642]
[1772106661774,12.77115305,2056.3,2055.1,0.24328]
[1772106661973,0.00615305,2056.3,2055.4,1.20876171]
[1772106662969,0.00615305,2056.3,2055.5,1.2140413]
[1772106663272,41.04311,2056.7,2055.5,1.2140413]
[1772106663876,0.24311,2056.7,2055.5,1.2140413]
[1772106664176,0.24827315,2056.7,2055.5,1.2140413]
[1772106665669,0.00516315,2056.7,2055.5,1.2140413]
[1772106671378,0.00516315,2056.7,2056.0,1.18483544]
[1772106671581,0.00516315,2056.7,2056.0,1.18892799]
[1772106672276,1.19698144,2056.7,2056.0,1.18892799]
[1772106673079,1.19181829,2056.5,2056.0,1.18892799]
[1772106673573,1.19698144,2056.7,2056.0,1.18892799]
[1772106675182,0.00516315,2056.7,2056.0,1.18892799]
[1772106675580,0.00516315,2056.7,2056.2,1.181872]
[1772106676482,12.797,2057.0,2056.2,1.181872]
[1772106677475,12.80114775,2057.0,2056.2,1.181872]
[1772106677683,13.04421775,2057.0,2056.2,1.181872]
[1772106680280,0.2431,2056.7,2056.0,1.23840117]
[1772106680480,12.817,2056.6,2056.0,1.23840117]
[1772106686589,0.00414775,2057.0,2056.0,1.23840117]
[1772106686786,12.85814775,2057.0,2056.0,1.23840117]
[1772106686987,0.00414775,2057.0,2056.0,1.23840117]
[1772106687988,0.24307,2056.9,2056.0,1.23840117]
[1772106688193,19.10534055,2056.8,2056.0,1.23840117]
[1772106688385,7.76880707,2056.3,2055.0,1.10981363]
[1772106688591,0.24322,2055.7,2054.0,1.05337331]
[1772106688784,19.57905357,2055.6,2054.0,1.05337331]
[1772106688991,6.2536834,2055.5,2054.0,1.05337331]
[1772106689192,12.879,2055.6,2054.0,1.05337331]
[1772106689396,12.88413727,2055.6,2054.0,1.05697135]
[1772106691689,12.88413727,2055.6,2054.3,1.0445364]
[1772106691887,12.88413727,2055.6,2054.2,1.78734707]
[1772106691888,12.88413727,2055.6,2054.6,1.0445364]
[1772106706404,0.00513727,2055.6,2054.9,1.03927824]
[1772106710401,0.24315,2056.3,2055.1,1.03392244]
[1772106710802,41.04315,2056.3,2055.1,1.03392244]
[1772106711505,41.04759801,2056.3,2055.1,1.03392244]
[1772106714307,12.805,2056.2,2055.1,1.03392244]
[1772106719619,0.00444801,2056.3,2055.3,1.03775126]
[1772106735923,0.00444801,2056.3,2055.5,1.01035125]
[1772106736126,0.00444801,2056.3,2055.5,1.0165379]
[1772106744739,41.04308,2056.9,2055.7,1.00883034]
[1772106744938,6.71824715,2056.8,2055.7,1.00883034]
[1772106745136,6.2713487,2056.7,2055.7,1.00883034]
[1772106745336,41.04308,2056.9,2055.7,1.00883034]
[1772106745637,6.70876779,2056.8,2055.7,1.00883034]
[1772106745834,1.19223653,2056.5,2055.7,1.00883034]
[1772106746036,1.19223653,2056.5,2055.5,1.01211957]
[1772106746037,6.95058393,2056.4,2055.5,1.01211957]
[1772106746234,1.19223653,2056.2,2055.5,1.01211957]
[1772106747835,0.24318,2056.0,2055.3,1.00387825]
[1772106748037,6.70620625,2055.9,2055.3,1.00387825]
[1772106748238,0.24318,2056.0,2055.3,1.00387825]
[1772106749041,0.24318,2056.0,2055.3,1.0083385]
[1772106749930,16.73319557,2056.3,2055.3,1.0083385]
[1772106750131,6.25073028,2056.2,2055.3,1.0083385]
[1772106750341,12.719,2056.3,2055.3,1.0083385]
[1772106751041,1.19223653,2055.7,2055.2,0.97498263]
[1772106751342,1.43538653,2056.2,2055.2,0.97498263]
[1772106751640,0.2432,2055.8,2054.6,0.97496855]
[1772106751836,12.716,2055.7,2054.6,0.97496855]
[1772106752036,12.716,2055.7,2054.6,0.98084584]
[1772106753642,53.516,2055.7,2054.6,0.98084584]
[1772106755343,12.716,2055.7,2054.6,0.98084584]
[1772106760550,12.716,2055.7,2054.8,0.96560503]
[1772106760750,12.732,2056.1,2055.0,0.96744391]
[1772106773758,0.2431,2056.7,2055.2,0.96698636]
[1772106773965,0.24312,2056.5,2055.2,0.96698636]
[1772106774256,40.8,2056.4,2055.2,0.96698636]
[1772106775363,1.19253172,2056.1,2055.4,0.9670834]
[1772106779767,1.19253172,2056.3,2055.4,0.9670834]
[1772106783464,40.8,2056.5,2055.5,1.19253172]
[1772106783675,12.689,2056.4,2055.8,0.96893394]
[1772106786371,0.24774093,2056.9,2056.2,0.97379166]
[1772106786675,12.705,2056.8,2056.2,0.97929544]
[1772106787575,0.24774093,2056.9,2056.2,0.97929544]
[1772106787775,12.711,2056.8,2056.2,0.97929544]
[1772106787970,0.24774093,2056.9,2056.2,0.97929544]
[1772106788171,0.00466093,2056.9,2056.2,0.97929544]
[1772106788371,12.71866093,2056.9,2056.2,0.97929544]
[1772106788770,13.91119265,2056.9,2056.2,0.97929544]
[1772106788970,0.00466093,2056.9,2056.2,0.97929544]
[1772106789473,12.72366093,2056.9,2056.2,0.97929544]
[1772106789670,0.00466093,2056.9,2056.2,0.97929544]
[1772106789972,0.00466093,2056.9,2056.3,0.97000516]
[1772106791268,0.00466093,2056.9,2056.2,0.97725147]
[1772106794777,12.75166093,2056.9,2056.2,0.97725147]
[1772106795678,0.00466093,2056.9,2056.2,0.97725147]
[1772106796178,12.755,2056.8,2056.2,0.97725147]
[1772106798680,12.755,2056.8,2056.3,0.97077568]
[1772106810186,13.94753172,2056.8,2056.2,0.00550378]
[1772106810393,1.19253172,2056.4,2055.9,0.97101743]
[1772106810590,14.03953172,2056.4,2055.9,0.97101743]
[1772106811292,14.03953172,2056.4,2055.9,0.9753526]
[1772106814694,12.847,2056.4,2055.9,0.9753526]
[1772106820397,12.847,2056.4,2055.9,0.00433517]
[1772106820598,1.19253172,2056.2,2055.9,0.00433517]
[1772106820798,1.19253172,2056.2,2055.6,0.97053]
[1772106821193,14.03953172,2056.4,2055.6,0.97053]
[1772106821699,14.03953172,2056.4,2055.6,0.97665085]
[1772106824500,1.19253172,2056.2,2055.6,0.97665085]
[1772106829006,14.03953172,2056.4,2055.6,0.97665085]
[1772106831316,12.847,2056.4,2055.6,0.97665085]
[1772106832103,1.4355154,2056.7,2055.6,0.97665085]
[1772106832309,19.10589472,2056.6,2055.6,0.97665085]
[1772106832508,12.837,2056.6,2055.6,0.97665085]
[1772106839013,6.52278985,2056.5,2055.6,0.97665085]
[1772106839311,0.24312,2056.5,2055.6,0.97665085]
[1772106840513,6.28763157,2056.4,2055.6,0.97665085]
[1772106840712,0.24312,2056.5,2055.6,0.97665085]
[1772106841013,6.28759312,2056.4,2055.6,0.97665085]
[1772106841312,0.24312,2056.5,2055.6,0.97665085]
[1772106841514,6.28715371,2056.4,2055.6,0.97665085]
[1772106841710,0.24312,2056.5,2055.6,0.97665085]
[1772106842312,0.24316,2056.2,2055.6,0.00612085]
[1772106845315,12.805,2056.1,2055.6,0.00612085]
[1772106848018,0.24316,2056.2,2055.6,0.97611163]
[1772106848219,12.811,2056.3,2055.6,0.97611163]
[1772106850116,0.24311,2056.6,2055.6,0.97611163]
[1772106850419,12.812,2056.7,2055.8,0.97028916]
[1772106853316,0.00466093,2056.9,2055.8,0.97028916]
[1772106858121,0.00466093,2056.9,2056.0,0.96784935]
[1772106862432,0.00466093,2056.9,2056.0,0.96426878]
[1772106862833,0.24308,2056.8,2056.0,0.96426878]
[1772106863031,1.4354954,2056.8,2056.0,0.96426878]
[1772106863228,1.4354954,2056.8,2055.7,0.97161041]
[1772106865735,6.25559436,2056.7,2055.7,0.97161041]
[1772106865935,1.4354954,2056.8,2055.7,0.97161041]
[1772106866133,6.25635818,2056.7,2055.7,0.97161041]
[1772106866334,1.4354954,2056.8,2055.7,0.97161041]
[1772106866535,47.05608608,2056.7,2055.7,0.97161041]
[1772106866727,40.8,2056.7,2055.7,0.97161041]
[1772106868239,0.24308,2056.8,2055.7,0.97161041]
[1772106868738,41.04308,2056.8,2055.7,0.97161041]
[1772106870538,0.24308,2056.8,2055.7,0.97161041]
[1772106871036,41.04308,2056.8,2055.7,0.97161041]
[1772106871935,0.24308,2056.8,2055.7,0.97161041]
[1772106877337,19.23061442,2056.7,2055.7,0.97161041]
[1772106877536,12.967,2056.7,2055.7,0.97161041]
[1772106881145,12.967,2056.7,2055.8,0.97098322]
[1772106887550,12.967,2056.7,2055.9,0.97096604]
[1772106893256,12.967,2056.7,2056.2,0.96864266]
[1772106899057,0.00466093,2056.9,2056.2,0.96864266]
[1772106900755,7.57649937,2057.5,2056.8,0.96889587]
[1772106900756,13.082,2057.5,2056.8,0.96889587]
[1772106900955,6.04153619,2057.8,2056.3,0.24314]
[1772106900956,4.03634185,2057.8,2057.0,0.96889587]
[1772106901156,4.03634185,2057.8,2056.9,1.19162349]
[1772106901157,13.083,2057.7,2057.2,0.96889587]
[1772106901757,13.08862548,2057.7,2057.2,0.97404973]
[1772106905564,13.08862548,2057.7,2057.2,0.00515386]
[1772106905961,13.08862548,2057.7,2057.2,0.97683869]
[1772106912164,1.19162349,2057.9,2057.2,0.97683869]
[1772106913364,1.19570202,2057.9,2057.2,0.97683869]
[1772106915163,0.00407853,2057.9,2057.2,0.97683869]
[1772106915370,1.19570202,2057.9,2057.2,0.97683869]
[1772106915966,1.19162349,2057.4,2056.9,0.96310656]
[1772106916166,1.19162349,2057.6,2056.9,0.96310656]
[1772106916368,1.19162349,2057.4,2056.6,0.96310656]
[1772106917065,1.19162349,2057.4,2056.6,0.96793771]
[1772106925067,13.40797,2057.8,2056.7,0.95830206]
[1772106925269,1.19162349,2057.7,2056.9,0.95830206]
[1772106930982,13.40797,2057.8,2056.9,0.95830206]
[1772106931180,6.24775949,2057.7,2056.9,0.95830206]
[1772106931481,13.165,2057.8,2056.9,0.95830206]
[1772106933380,13.165,2057.8,2057.1,0.9588782]
[1772106940785,1.19162349,2057.7,2056.9,0.96258606]
[1772106940985,1.19162349,2057.5,2056.9,0.96258606]
[1772106941180,1.19162349,2057.3,2056.8,0.96258606]
[1772106941483,1.19162349,2057.3,2056.7,0.96258606]
[1772106942389,1.19162349,2057.3,2056.6,0.00483115]
[1772106942586,14.32762349,2057.3,2056.6,0.96741722]
[1772106942988,13.136,2057.3,2056.6,0.96741722]
[1772106943789,13.136,2057.3,2056.6,2.15904071]
[1772106943990,13.136,2057.3,2056.7,0.96264385]
[1772106949297,1.19162349,2057.5,2056.7,0.96264385]
[1772106950498,1.19162349,2057.3,2056.7,0.96264385]
[1772106952298,1.19162349,2057.5,2056.7,0.96264385]
[1772106953299,13.38,2057.6,2056.7,0.96264385]
[1772106959204,13.38,2057.6,2056.6,0.9762663]
[1772106961003,0.24301,2057.4,2056.6,0.9762663]
[1772106961401,0.24301,2057.4,2056.6,0.00483115]
[1772106961604,1.43410463,2057.2,2056.6,0.00483115]
[1772106961803,13.111,2057.1,2056.3,0.971047]
[1772106962807,13.111,2057.1,2056.3,0.97572978]
[1772106967314,13.111,2057.1,2056.3,0.00468278]
[1772106967515,1.19106463,2056.9,2056.3,0.00468278]
[1772106968513,1.19106463,2056.9,2056.1,0.96695436]
[1772106968713,0.24308,2056.8,2056.1,0.96695436]
[1772106969510,0.24308,2056.8,2056.1,0.97115462]
[1772106969715,40.8,2057.0,2056.1,0.97115462]
[1772106969909,13.111,2057.1,2056.1,0.97115462]
[1772106969910,13.111,2057.1,2056.3,0.96696194]
[1772106977718,0.24306,2057.0,2056.2,0.96558555]
[1772106978320,13.111,2057.1,2056.2,0.96558555]
[1772106980420,13.199,2057.3,2056.5,0.96419854]
[1772106999537,13.316,2057.5,2056.5,0.96419854]
[1772107008242,13.55901,2057.5,2056.5,0.96419854]
[1772107008438,6.25927687,2057.4,2056.5,0.96419854]
[1772107008642,13.55901,2057.5,2056.5,0.96419854]
[1772107008843,6.25896262,2057.4,2056.5,0.96419854]
[1772107009045,13.55901,2057.5,2056.5,0.96419854]
[1772107009344,6.25746507,2057.4,2056.5,0.96419854]
[1772107009642,13.55901,2057.5,2056.5,0.96419854]
[1772107009846,6.25838736,2057.4,2056.5,0.96419854]
[1772107010044,13.55901,2057.5,2056.5,0.96419854]
[1772107010243,6.25781832,2057.4,2056.5,0.96419854]
[1772107010548,13.55901,2057.5,2056.5,0.96419854]
[1772107010747,6.70839315,2057.4,2056.5,0.96419854]
[1772107011047,13.55901,2057.5,2056.5,0.96419854]
[1772107011249,6.70824327,2057.4,2056.5,0.96419854]
[1772107011436,13.55901,2057.5,2056.5,0.96419854]
[1772107011642,6.70834989,2057.4,2056.5,0.96419854]
[1772107011843,13.55901,2057.5,2056.5,0.96419854]
[1772107012142,6.7082817,2057.4,2056.5,0.96419854]
[1772107012338,13.55901,2057.5,2056.5,0.96419854]
[1772107012544,6.70828674,2057.4,2056.5,0.96419854]
[1772107012748,13.55901,2057.5,2056.5,0.96419854]
[1772107012947,6.70846895,2057.4,2056.5,0.96419854]
[1772107013246,13.55901,2057.5,2056.5,0.96419854]
[1772107013445,6.70849109,2057.4,2056.5,0.96419854]
[1772107013645,13.55901,2057.5,2056.5,0.96419854]
[1772107013847,6.70849509,2057.4,2056.5,0.96419854]
[1772107014049,13.55901,2057.5,2056.5,0.96419854]
[1772107014347,6.70837354,2057.4,2056.5,0.96419854]
[1772107014546,13.55901,2057.5,2056.5,0.96419854]
[1772107014746,0.4475164,2057.4,2056.5,0.96419854]
[1772107014947,13.55901,2057.5,2056.5,0.96419854]
[1772107015249,1.6388087,2057.4,2056.5,0.96419854]
[1772107015547,1.19131424,2057.4,2056.5,0.96419854]
[1772107019150,1.19131424,2057.2,2056.5,0.96419854]
[1772107022249,1.19131424,2057.2,2056.4,1.19131424]
[1772107022445,1.19131424,2057.2,2056.1,0.24736026]
[1772107022446,1.19131424,2056.8,2056.1,0.96862859]
[1772107022647,13.61207,2056.9,2056.1,0.96862859]
[1772107030554,13.61207,2056.9,2056.2,1.19131424]
[1772107030754,13.61207,2056.9,2056.2,0.967889]
[1772107035659,13.369,2056.9,2056.4,0.96701242]
[1772107035861,13.369,2056.9,2056.6,0.96701242]
[1772107037569,13.373,2057.2,2056.6,0.96701242]
[1772107039064,13.373,2057.2,2056.8,0.96865971]
[1772107041369,4.29329444,2057.7,2056.8,0.96865971]
[1772107041565,13.396,2057.5,2056.8,0.96865971]
[1772107041769,1.19131424,2057.4,2056.6,0.97088206]
[1772107049968,13.396,2057.5,2056.7,1.19131424]
[1772107050173,13.396,2057.5,2056.8,0.96673848]
[1772107056079,1.19131424,2057.4,2056.6,0.97353942]
[1772107058679,14.58731424,2057.5,2056.6,0.97353942]
[1772107059983,1.19131424,2057.3,2056.6,0.97353942]
[1772107060778,14.58731424,2057.5,2056.6,0.97353942]
[1772107063582,13.396,2057.5,2056.6,0.97353942]
[1772107063783,14.58731424,2057.5,2056.6,0.97353942]
[1772107067286,6.24832573,2057.4,2056.6,0.97353942]
[1772107067582,14.58731424,2057.5,2056.6,0.97353942]
[1772107067778,6.24831719,2057.4,2056.6,0.97353942]
[1772107067985,6.24831719,2057.4,2056.3,1.43444424]
[1772107067986,13.396,2057.5,2056.8,0.9688469]
[1772107076893,1.19131424,2057.4,2056.8,0.9688469]
[1772107077295,13.396,2057.5,2056.8,0.9688469]
[1772107077488,6.25272077,2057.4,2056.8,0.9688469]
[1772107077694,13.396,2057.5,2056.8,0.9688469]
[1772107078195,13.396,2057.5,2056.6,0.96536535]
[1772107079694,6.25268135,2057.4,2056.6,0.96536535]
[1772107079893,13.396,2057.5,2056.6,0.96536535]
[1772107084296,6.24980556,2057.4,2056.6,0.96536535]
[1772107084497,13.396,2057.5,2056.6,0.96536535]
[1772107086299,6.2490566,2057.4,2056.6,0.96536535]
[1772107086597,13.396,2057.5,2056.6,0.96536535]
[1772107086797,6.26090754,2057.4,2056.6,0.96536535]
[1772107086998,13.396,2057.5,2056.6,0.96536535]
[1772107087199,6.26088565,2057.4,2056.6,0.96536535]
[1772107087497,13.396,2057.5,2056.6,0.96536535]
[1772107087698,6.26097239,2057.4,2056.6,0.96536535]
[1772107087898,13.396,2057.5,2056.6,0.96536535]
[1772107096009,6.25661698,2057.4,2056.6,0.96536535]
[1772107096208,13.396,2057.5,2056.6,0.96536535]
[1772107096408,6.25825541,2057.4,2056.6,0.96536535]
[1772107096609,13.396,2057.5,2056.6,0.96536535]
[1772107096810,6.25855565,2057.4,2056.6,0.96536535]
[1772107097110,13.396,2057.5,2056.6,0.96536535]
[1772107097407,6.25858568,2057.4,2056.6,0.96536535]
[1772107097610,13.396,2057.5,2056.6,0.96536535]
[1772107097908,6.25887198,2057.4,2056.6,0.96536535]
[1772107098105,13.396,2057.5,2056.6,0.96536535]
[1772107098304,6.25887833,2057.4,2056.6,0.96536535]
[1772107098602,13.396,2057.5,2056.6,0.96536535]
[1772107098907,6.25895183,2057.4,2056.6,0.96536535]
[1772107099111,13.396,2057.5,2056.6,0.96536535]
[1772107108022,13.812,2057.8,2056.8,0.96015777]
[1772107108218,0.00407853,2057.9,2057.0,1.19121421]
[1772107108516,0.00407853,2057.9,2057.1,0.96015777]
[1772107110921,1.19121421,2057.8,2056.9,0.95999743]
[1772107111116,0.24298,2057.7,2056.8,0.95999743]
[1772107115025,1.43419421,2057.7,2056.8,0.95999743]
[1772107115221,1.43419421,2057.7,2056.3,6.37]
[1772107115425,6.23789873,2057.6,2056.4,0.96246383]
[1772107115623,1.43419421,2057.7,2056.4,0.96246383]
[1772107115828,6.23788583,2057.6,2056.4,0.96246383]
[1772107116022,1.43419421,2057.7,2056.4,0.96246383]
[1772107116222,6.23788523,2057.6,2056.4,0.96246383]
[1772107116522,1.43419421,2057.7,2056.4,0.96246383]
[1772107116726,6.22871288,2057.6,2056.4,0.96246383]
[1772107117024,1.43419421,2057.7,2056.4,0.96246383]
[1772107117324,6.22787346,2057.6,2056.4,0.96246383]
[1772107117524,1.43419421,2057.7,2056.4,0.96246383]
[1772107117726,6.2280267,2057.6,2056.4,0.96246383]
[1772107117923,1.43419421,2057.7,2056.4,0.96246383]
[1772107118126,6.22798456,2057.6,2056.4,0.96246383]
[1772107118325,1.43419421,2057.7,2056.4,0.96246383]
[1772107118526,6.22807767,2057.6,2056.4,0.96246383]
[1772107118726,1.43419421,2057.7,2056.4,0.96246383]
[1772107118927,6.22807839,2057.6,2056.4,0.96246383]
[1772107119126,1.43419421,2057.7,2056.4,0.96246383]
[1772107119329,6.22817268,2057.6,2056.4,0.96246383]
[1772107119529,0.24298,2057.7,2056.4,0.96246383]
[1772107123833,1.43419421,2057.7,2056.4,0.96246383]
[1772107125034,6.22575238,2057.6,2056.4,0.96246383]
[1772107125234,1.43419421,2057.7,2056.4,0.96246383]
[1772107125431,6.22588924,2057.6,2056.4,0.96246383]
[1772107125633,1.43419421,2057.7,2056.4,0.96246383]
[1772107125833,6.22586021,2057.6,2056.4,0.96246383]
[1772107126032,1.43419421,2057.7,2056.4,0.96246383]
[1772107126331,6.22573771,2057.6,2056.4,0.96246383]
[1772107126532,1.43419421,2057.7,2056.4,0.96246383]
[1772107126732,17.85866332,2057.9,2056.7,1.19121421]
[1772107126927,6.22568145,2057.8,2056.8,0.96877613]
[1772107127135,13.80507853,2057.9,2056.8,0.96877613]
[1772107127436,6.67711542,2057.8,2056.8,0.96877613]
[1772107127734,13.80507853,2057.9,2056.8,0.96877613]
[1772107127932,6.67711104,2057.8,2056.8,0.96877613]
[1772107128230,13.80507853,2057.9,2056.8,0.96877613]
[1772107128436,6.67729574,2057.8,2056.8,0.96877613]
[1772107128633,13.80507853,2057.9,2056.8,0.96877613]
[1772107128934,6.67728654,2057.8,2056.8,0.96877613]
[1772107129135,13.80507853,2057.9,2056.8,0.96877613]
[1772107129335,6.67751615,2057.8,2056.8,0.96877613]
[1772107129528,13.80507853,2057.9,2056.8,0.96877613]
[1772107129730,6.67751436,2057.8,2056.8,0.96877613]
[1772107129936,13.80507853,2057.9,2056.8,0.96877613]
[1772107130235,6.67751433,2057.8,2056.8,0.96877613]
[1772107130532,13.80507853,2057.9,2056.8,0.96877613]
[1772107130736,6.67773846,2057.8,2056.8,0.96877613]
[1772107130937,13.80507853,2057.9,2056.8,0.96877613]
[1772107131138,6.67774418,2057.8,2056.8,0.96877613]
[1772107131335,13.80507853,2057.9,2056.8,0.96877613]
[1772107131537,6.67794954,2057.8,2056.8,0.96877613]
[1772107131737,13.80507853,2057.9,2056.8,0.96877613]
[1772107131937,6.67791605,2057.8,2056.8,0.96877613]
[1772107132141,13.80507853,2057.9,2056.8,0.96877613]
[1772107132342,6.67803498,2057.8,2056.8,0.96877613]
[1772107132532,13.80507853,2057.9,2056.8,0.96877613]
[1772107132736,6.67803498,2057.8,2056.8,0.96877613]
[1772107132937,13.80507853,2057.9,2056.8,0.96877613]
[1772107133140,6.6780328,2057.8,2056.8,0.96877613]
[1772107133433,13.80507853,2057.9,2056.8,0.96877613]
[1772107133636,6.67803432,2057.8,2056.8,0.96877613]
[1772107133836,13.80507853,2057.9,2056.8,0.96877613]
[1772107134135,6.67803432,2057.8,2056.8,0.96877613]
[1772107134332,13.80507853,2057.9,2056.8,0.96877613]
[1772107134532,6.67803018,2057.8,2056.8,0.96877613]
[1772107134732,13.80507853,2057.9,2056.8,0.96877613]
[1772107134942,6.67823221,2057.8,2056.8,0.96877613]
[1772107135241,13.80507853,2057.9,2056.8,0.96877613]
[1772107135440,6.67813002,2057.8,2056.8,0.96877613]
[1772107135736,13.80507853,2057.9,2056.8,0.96877613]
[1772107135940,6.6779192,2057.8,2056.8,0.96877613]